bitfinex/quotes_SOLUSD_20260105
["timestamp","ask_amount","ask_price","bid_price","bid_amount"]
[1767596918257,10.25047648,135.1,135.07,0.71190729]
[1767596919670,8.10782664,135.1,135.07,0.71190729]
[1767596919844,10.25047648,135.1,135.07,0.71190729]
[1767596926576,2.14264984,135.08,135.05,0.66803415]
[1767596926951,2.81874314,135.08,135.05,0.66803415]
[1767596927480,0.6760933,135.09,135.05,0.66803415]
[1767596927772,0.6760933,135.09,135.06,0.66803415]
[1767596928975,21.57755347,135.11,135.07,0.66803415]
[1767596929177,23.72020331,135.11,135.07,0.66803415]
[1767596929386,0.51755288,135.1,135.07,0.66803415]
[1767596930582,21.57755347,135.11,135.07,0.66803415]
[1767596931279,19.07755347,135.11,135.08,0.71819529]
[1767596931473,0.51755288,135.1,135.08,0.71819529]
[1767596931783,2.66020272,135.1,135.06,0.71819529]
[1767596931964,0.67450789,135.09,135.06,0.71819529]
[1767596932168,2.81715773,135.09,135.06,0.71819529]
[1767596932371,2.66177227,135.08,135.05,0.71819529]
[1767596938685,2.66331059,135.06,135.02,0.71819529]
[1767596939363,2.66331059,135.06,135.03,0.71819529]
[1767596941276,2.81408094,135.05,135.01,0.72416092]
[1767596941672,2.81408094,135.05,135.0,9.54974031]
[1767596941673,2.81258831,135.03,134.99,0.72416092]
[1767596941887,2.81258831,135.03,135.0,0.72416092]
[1767596942092,2.78258832,135.03,135.0,0.72416092]
[1767596942688,0.66993847,135.03,135.0,0.72416092]
[1767596942884,11.46630762,135.04,135.0,0.72416092]
[1767596943061,3.34953638,135.04,135.0,8.13146835]
[1767596943264,0.71153202,135.06,135.03,0.72416092]
[1767596943679,0.71153202,135.06,135.03,4.0736973]
[1767596943994,8.11467103,135.08,135.04,4.0736973]
[1767596944898,0.71153202,135.08,135.05,0.72416092]
[1767596947293,8.11457418,135.08,135.05,0.72416092]
[1767596948001,0.48246855,135.07,135.04,0.72416092]
[1767596948301,0.70699633,135.04,135.01,0.72416092]
[1767596954915,8.11229606,135.04,135.01,0.72416092]
[1767596956713,8.11229606,135.04,135.0,3.34953638]
[1767596956714,0.48695888,135.03,135.0,0.72416092]
[1767596957105,0.48695888,135.03,134.99,0.72416092]
[1767596957106,3.83649526,135.03,134.99,0.72416092]
[1767596957716,0.70479595,135.02,134.99,0.72416092]
[1767596958093,4.05433233,135.02,134.99,0.72416092]
[1767596961819,0.70263937,135.0,134.98,0.72416092]
[1767596962019,4.0610684,135.01,134.98,0.72416092]
[1767596963949,11.46799347,135.01,134.98,0.72416092]
[1767596964235,0.48246855,135.0,134.97,0.72416092]
[1767596964830,11.46799347,135.01,134.97,0.72416092]
[1767596966852,3.34953638,135.0,134.97,0.72416092]
[1767596967032,4.05877776,134.99,134.96,0.72416092]
[1767596970948,0.48473628,134.98,134.95,0.1]
[1767596971253,0.48473628,134.98,134.95,0.79744612]
[1767596971645,3.83427266,134.98,134.95,0.79744612]
[1767596971846,3.34953638,134.98,134.95,0.79744612]
[1767596973252,3.82620038,134.98,134.95,0.79744612]
[1767596974651,3.34953638,134.98,134.95,0.79744612]
[1767596975765,0.7173952,135.01,134.96,0.69744612]
[1767596975964,7.40356852,135.07,135.0,0.69744612]
[1767596976160,3.34953638,135.02,135.0,0.69744612]
[1767596976462,4.06693158,135.01,134.98,0.69744612]
[1767596979767,0.476664,135.0,134.97,7.40898907]
[1767596979966,0.476664,135.0,134.97,8.10643519]
[1767596980972,3.34953638,134.98,134.95,0.79744612]
[1767596981141,7.78435126,135.0,134.95,0.1]
[1767596981142,0.376664,134.99,134.95,0.1]
[1767596981469,3.34953638,134.97,134.95,0.79744612]
[1767596981654,3.72342374,134.97,134.94,0.1]
[1767596981860,3.34953638,134.97,134.94,0.79744612]
[1767596983079,10.75861231,134.97,134.94,0.79744612]
[1767596983287,7.40907593,134.97,134.94,0.79744612]
[1767596983584,10.75861231,134.97,134.94,0.79744612]
[1767596984180,0.276664,134.99,134.94,0.79744612]
[1767596984484,3.44853638,134.98,134.94,0.79744612]
[1767596985077,0.27488736,134.97,134.94,0.1]
[1767596985378,3.62620038,134.98,134.94,0.79744612]
[1767596986183,0.099,134.97,134.94,0.79744612]
[1767596986381,0.276664,134.98,134.94,4.1469825]
[1767596986570,0.276664,134.98,134.94,0.79744612]
[1767596986882,0.099,134.97,134.94,0.1]
[1767596987668,0.27488736,134.96,134.94,0.1]
[1767596987863,7.40905386,134.97,134.94,0.1]
[1767596988081,7.40905386,134.97,134.94,0.79744612]
[1767596988276,7.50805386,134.97,134.94,0.79744612]
[1767596988480,0.27488736,134.96,134.94,0.1]
[1767596990371,7.40905386,134.97,134.94,0.79744612]
[1767596990372,7.68571786,134.97,134.94,0.79744612]
[1767596991194,7.40905386,134.97,134.94,0.79744612]
[1767596991698,0.099,134.96,134.94,0.1]
[1767596992500,7.40905386,134.97,134.94,0.1]
[1767596993013,3.34953638,134.96,134.94,0.003]
[1767596993195,7.40905386,134.97,134.94,0.003]
[1767596993376,10.75859024,134.97,134.94,0.003]
[1767596993577,10.93825424,134.97,134.94,0.003]
[1767596995401,3.44853638,134.96,134.94,0.003]
[1767596996182,10.75859024,134.97,134.94,0.72334532]
[1767596996688,10.85759024,134.97,134.94,0.72334532]
[1767596996898,10.85759024,134.97,134.94,0.003]
[1767596998891,29.38022489,134.97,134.94,0.003]
[1767597001098,3.44853638,134.97,134.94,0.003]
[1767597002107,0.099,134.97,134.94,0.003]
[1767597002300,3.44853638,134.97,134.94,0.003]
[1767597002607,103.8,134.99,134.96,0.68009897]
[1767597003011,7.40806891,134.99,134.96,0.68009897]
[1767597005708,7.40753732,135.0,134.97,0.68009897]
[1767597006928,9.55212249,135.01,134.97,0.68009897]
[1767597007525,7.40708058,135.01,134.98,0.68009897]
[1767597007728,124.8861856,135.02,134.98,0.68009897]
[1767597008229,127.03122751,135.02,134.98,0.68009897]
[1767597008402,113.35156351,135.02,134.98,0.68009897]
[1767597008804,111.2065216,135.02,134.98,0.68009897]
[1767597009128,111.2065216,135.02,134.98,2.82514088]
[1767597009325,111.2065216,135.02,134.99,0.68009897]
[1767597009524,103.8,135.02,134.99,0.68009897]
[1767597009709,103.8,135.02,135.0,0.68009897]
[1767597009905,7.4059448,135.03,135.0,0.68009897]
[1767597011828,20.90534019,135.04,135.0,0.68009897]
[1767597013114,7.40534019,135.04,135.0,0.68009897]
[1767597013536,25.91687447,135.05,135.01,0.68009897]
[1767597013711,28.19061638,135.05,135.01,0.65009897]
[1767597018646,7.40460883,135.06,135.02,2.82514088]
[1767597018860,7.40460883,135.06,135.03,0.65009897]
[1767597020344,9.67835074,135.06,135.03,0.65009897]
[1767597021545,9.67835074,135.06,135.02,0.68009897]
[1767597021723,7.53330883,135.06,135.02,0.68009897]
[1767597021924,9.67835074,135.06,135.02,0.68009897]
[1767597023858,7.53330883,135.06,135.02,0.68009897]
[1767597024150,9.67835074,135.06,135.02,0.68009897]
[1767597028629,7.40460883,135.06,135.03,0.68009897]
[1767597029363,9.7879081,135.06,135.02,0.68009897]
[1767597030253,2.38192062,135.04,134.98,0.68009897]
[1767597030427,2.38056941,135.02,134.98,0.68009897]
[1767597030631,7.40685875,135.01,134.98,0.68009897]
[1767597030853,9.55190066,135.01,134.98,0.68009897]
[1767597032158,7.40685875,135.01,134.98,0.68009897]
[1767597037564,9.55190066,135.01,134.98,0.68009897]
[1767597037732,7.40685875,135.01,134.98,0.68009897]
[1767597038068,13.739664,135.05,135.0,0.71163751]
[1767597038259,106.18470591,135.06,135.02,0.71163751]
[1767597038553,2.14504191,135.05,135.02,0.71163751]
[1767597039859,9.54978025,135.05,135.02,0.68163751]
[1767597040159,9.67848025,135.05,135.02,0.68163751]
[1767597040455,9.67848025,135.05,135.02,0.65163751]
[1767597040960,9.54978025,135.05,135.02,0.65163751]
[1767597042966,7.40473834,135.05,135.02,0.65163751]
[1767597043467,9.54978025,135.05,135.02,0.65163751]
[1767597044257,32.00962323,135.07,135.03,0.71163751]
[1767597044258,15.94470591,135.07,135.03,0.71163751]
[1767597045067,2.44470591,135.07,135.03,0.71163751]
[1767597045862,9.84842751,135.07,135.03,0.71163751]
[1767597046052,7.7033856,135.07,135.03,0.71163751]
[1767597046257,9.54806234,135.08,135.03,0.71163751]
[1767597046459,9.54806234,135.08,135.04,0.71163751]
[1767597047159,7.40302043,135.08,135.04,0.71163751]
[1767597047347,9.54806234,135.08,135.04,0.71163751]
[1767597047665,9.54806234,135.08,135.04,0.68163751]
[1767597048165,7.40302043,135.08,135.04,0.68163751]
[1767597048348,9.54806234,135.08,135.04,0.68163751]
[1767597048746,2.00300002,135.1,135.05,2.14504191]
[1767597048946,2.00300002,135.1,135.06,2.14504191]
[1767597049266,2.00300002,135.1,135.06,2.11504191]
[1767597049449,2.00300002,135.1,135.07,0.71163751]
[1767597049645,2.00300002,135.1,135.07,0.65163751]
[1767597050364,2.00300002,135.1,135.07,2.14504191]
[1767597050745,2.00300002,135.1,135.07,7.40355308]
[1767597051443,2.00300002,135.1,135.06,9.5489701]
[1767597051767,2.00300002,135.1,135.07,0.67581638]
[1767597052267,9.84587637,135.11,135.07,0.67581638]
[1767597052568,7.60183446,135.11,135.07,0.67581638]
[1767597053079,9.74687637,135.11,135.07,0.67581638]
[1767597054666,9.84587637,135.11,135.07,0.67581638]
[1767597055249,7.60183446,135.11,135.07,0.67581638]
[1767597055567,9.74687637,135.11,135.07,0.67581638]
[1767597056666,9.84587637,135.11,135.07,0.67581638]
[1767597064995,0.2,135.11,135.08,0.66781818]
[1767597068287,3.54513262,135.11,135.08,0.66781818]
[1767597070292,7.39980754,135.14,135.11,0.66781818]
[1767597070492,10.74494016,135.14,135.11,0.66781818]
[1767597070801,3.34513262,135.13,135.11,0.66781818]
[1767597073296,7.9845649,135.14,135.11,0.66781818]
[1767597073472,3.34513262,135.13,135.11,0.66781818]
[1767597073674,3.34513262,135.12,135.09,0.66781818]
[1767597073878,3.34513262,135.1,135.06,0.66781818]
[1767597074184,3.34513262,135.09,135.07,0.66781818]
[1767597076500,7.51003238,135.11,135.07,0.66781818]
[1767597076678,3.34513262,135.09,135.07,0.66781818]
[1767597083494,7.9910779,135.11,135.07,0.66781818]
[1767597083696,18.50070302,135.13,135.08,0.66781818]
[1767597083697,0.589664,135.13,135.08,0.66781818]
[1767597084005,3.93479662,135.13,135.09,0.66781818]
[1767597084399,3.34513262,135.13,135.09,0.66781818]
[1767597084898,21.48959673,135.14,135.1,0.66781818]
[1767597085079,3.34513262,135.13,135.1,0.66781818]
[1767597091883,20.89993273,135.14,135.1,0.66781818]
[1767597092208,3.34513262,135.13,135.1,0.66781818]
[1767597092413,20.89993273,135.14,135.1,0.66781818]
[1767597092613,3.34513262,135.13,135.1,0.66781818]
[1767597095919,7.49893273,135.14,135.1,0.66781818]
[1767597096124,3.34513262,135.13,135.1,0.66781818]
[1767597097625,7.39919605,135.15,135.12,0.66119037]
[1767597097917,3.34513262,135.13,135.11,0.66119037]
[1767597098297,0.70921649,135.14,135.11,0.66119037]
[1767597098621,3.34513262,135.13,135.11,0.66119037]
[1767597099116,0.70921649,135.14,135.11,0.66119037]
[1767597099318,3.34513262,135.13,135.11,0.66119037]
[1767597100024,0.70921649,135.14,135.11,8.06253614]
[1767597100226,0.70921649,135.15,135.12,0.66119037]
[1767597100425,4.05434911,135.15,135.12,0.66119037]
[1767597100801,3.34513262,135.15,135.12,0.66119037]
[1767597101009,0.70921649,135.16,135.12,0.66119037]
[1767597101225,4.04352565,135.15,135.12,0.66119037]
[1767597101524,3.34513262,135.15,135.12,0.66119037]
[1767597102121,4.05434911,135.16,135.13,0.66119037]
[1767597103306,0.70921649,135.16,135.13,0.66119037]
[1767597103506,4.05434911,135.16,135.13,0.66119037]
[1767597105424,3.34513262,135.15,135.13,0.66119037]
[1767597105928,4.05434911,135.16,135.13,0.66119037]
[1767597106112,3.34513262,135.15,135.13,0.66119037]
[1767597108129,0.70921649,135.16,135.13,0.66119037]
[1767597108304,3.34513262,135.15,135.13,0.66119037]
[1767597110522,4.05424088,135.16,135.13,0.66119037]
[1767597112918,0.70910826,135.16,135.13,0.66119037]
[1767597113147,4.05424088,135.16,135.13,0.66119037]
[1767597116810,0.2,135.17,135.14,0.71543688]
[1767597117338,4.05846957,135.19,135.16,0.71543688]
[1767597118448,0.71333695,135.19,135.16,0.71543688]
[1767597118642,4.05846957,135.19,135.16,0.71543688]
[1767597118824,4.05846957,135.19,135.16,0.65543688]
[1767597119632,0.71333695,135.18,135.15,7.39875744]
[1767597119947,4.05846957,135.18,135.15,7.39875744]
[1767597120948,4.05846957,135.18,135.15,8.12352058]
[1767597121651,0.68364133,135.19,135.16,0.72476314]
[1767597121851,4.02877395,135.19,135.16,0.72476314]
[1767597122649,0.88364133,135.2,135.16,0.72476314]
[1767597122958,0.2,135.2,135.17,0.72476314]
[1767597123248,0.2,135.2,135.17,0.69476314]
[1767597123466,0.2,135.2,135.17,7.39804777]
[1767597124637,0.2,135.2,135.17,10.74318039]
[1767597125362,0.2,135.2,135.18,0.72476314]
[1767597125539,0.2,135.2,135.19,0.72476314]
[1767597125738,0.2,135.2,135.19,0.66476314]
[1767597126166,0.2,135.21,135.18,7.3971708]
[1767597126355,0.2,135.21,135.18,10.74230342]
[1767597127045,0.2,135.21,135.19,3.34513262]
[1767597127437,0.2,135.21,135.19,10.74173777]
[1767597127867,0.2,135.21,135.2,0.72476314]
[1767597129057,0.2,135.22,135.2,8.12096704]
[1767597130070,0.2,135.22,135.2,8.06096704]
[1767597131291,1e-08,135.22,135.2,8.06096704]
[1767597131574,1e-08,135.22,135.2,7.3962039]
[1767597131778,1e-08,135.22,135.2,9.53316965]
[1767597131972,1e-08,135.22,135.21,0.715336]
[1767597132181,1e-08,135.22,135.21,0.655336]
[1767597132893,0.2,135.24,135.21,2.13696575]
[1767597133070,0.68364133,135.26,135.23,2.13696575]
[1767597133385,0.68364133,135.26,135.23,9.53177459]
[1767597133589,0.88364133,135.27,135.24,2.13696575]
[1767597133791,0.2,135.27,135.24,2.13696575]
[1767597134077,0.2,135.27,135.24,0.655336]
[1767597135569,0.2,135.27,135.24,8.04928037]
[1767597135765,0.88364133,135.27,135.24,8.04928037]
[1767597140586,0.2,135.27,135.25,0.655336]
[1767597140885,0.2,135.27,135.26,0.655336]
[1767597141182,0.2,135.27,135.25,21.52900631]
[1767597141490,0.2,135.29,135.26,0.655336]
[1767597142168,0.88364133,135.29,135.26,0.655336]
[1767597142778,0.88364133,135.29,135.26,8.04798877]
[1767597144388,0.68364133,135.27,135.23,18.94166905]
[1767597144567,2.82060708,135.28,135.25,7.3933448]
[1767597144772,2.82060708,135.28,135.25,7.8486808]
[1767597145174,2.82060708,135.28,135.24,7.84954826]
[1767597145381,0.68364133,135.27,135.24,0.455336]
[1767597145893,0.68364133,135.27,135.23,7.85003544]
[1767597145894,0.68364133,135.26,135.23,7.85003544]
[1767597146095,2.82060708,135.27,135.23,7.85003544]
[1767597146791,0.68364133,135.27,135.24,0.455336]
[1767597146972,0.68364133,135.27,135.24,0.395336]
[1767597147997,0.68364133,135.27,135.24,7.78959549]
[1767597151101,2.82060708,135.27,135.24,0.395336]
[1767597151682,2.82060708,135.27,135.24,0.335336]
[1767597152300,2.82060708,135.27,135.24,0.275336]
[1767597154805,0.68364133,135.27,135.24,0.275336]
[1767597156997,2.82060708,135.27,135.24,0.275336]
[1767597159510,2.82060708,135.27,135.24,0.215336]
[1767597159810,0.68364133,135.27,135.24,7.60947283]
[1767597161207,0.69469118,135.28,135.24,7.39413683]
[1767597161407,2.83165693,135.28,135.24,7.39413683]
[1767597161612,2.83165693,135.28,135.24,7.60947283]
[1767597161912,0.69469118,135.27,135.24,7.60947283]
[1767597164113,0.69469118,135.28,135.25,0.215336]
[1767597164299,0.2,135.29,135.26,14.21931687]
[1767597164699,0.69469118,135.32,135.26,16.35628262]
[1767597165005,0.69469118,135.32,135.27,2.13696575]
[1767597166101,0.69469118,135.32,135.28,7.39207569]
[1767597166302,0.69469118,135.32,135.28,7.54741169]
[1767597166811,0.69469118,135.32,135.28,7.48741169]
[1767597167021,0.69469118,135.32,135.29,13.635336]
[1767597167827,0.69469118,135.33,135.3,0.155336]
[1767597168316,0.69469118,135.33,135.3,7.390983]
[1767597168721,0.69469118,135.32,135.29,21.02667999]
[1767597170323,0.69469118,135.32,135.29,20.87134399]
[1767597174329,2.83165693,135.32,135.29,13.48]
[1767597174500,0.71293102,135.31,135.28,21.02720835]
[1767597177220,2.13696575,135.32,135.26,21.02803897]
[1767597177221,2.84989677,135.29,135.26,21.02803897]
[1767597177531,0.71293102,135.3,135.26,21.02803897]
[1767597177823,2.84989677,135.3,135.26,21.02803897]
[1767597178910,2.84989677,135.29,135.26,21.02803897]
[1767597179226,2.84989677,135.29,135.26,20.87270297]
[1767597179425,2.84989677,135.29,135.26,21.02803897]
[1767597180904,0.68847137,135.28,135.25,7.5486954]
[1767597181112,2.82543712,135.28,135.25,21.0286954]
[1767597181631,2.82543712,135.29,135.25,21.0286954]
[1767597183415,0.68847137,135.27,135.24,39.51455129]
[1767597183903,2.13696575,135.28,135.24,39.51455129]
[1767597183904,2.82543712,135.28,135.24,39.51455129]
[1767597186143,0.68847137,135.28,135.24,39.51455129]
[1767597186344,0.68847137,135.29,135.25,0.155336]
[1767597187238,0.68847137,135.29,135.26,7.39316871]
[1767597187426,0.68847137,135.29,135.26,20.87316871]
[1767597188041,0.68847137,135.27,135.26,13.48]
[1767597189043,3.336792,135.28,135.26,13.48]
[1767597189245,4.02526337,135.28,135.26,13.48]
[1767597189950,0.68847137,135.26,135.23,0.73948088]
[1767597190129,0.68847137,135.26,135.24,13.48]
[1767597190332,4.02526337,135.26,135.24,13.48]
[1767597190533,4.02526337,135.26,135.23,20.87445589]
[1767597190938,4.02526337,135.27,135.24,7.54949726]
[1767597196964,0.68847137,135.27,135.24,7.54949726]
[1767597197167,0.68847137,135.27,135.24,7.39416126]
[1767597197466,0.68847137,135.26,135.24,7.39416126]
[1767597201448,4.02526337,135.27,135.24,7.39416126]
[1767597202762,0.68847137,135.33,135.25,0.155336]
[1767597203067,0.68847137,135.31,135.27,0.155336]
[1767597203250,0.68847137,135.3,135.27,0.155336]
[1767597203450,4.02526337,135.3,135.26,13.635336]
[1767597203663,0.68847137,135.3,135.26,16.972128]
[1767597203867,0.68847137,135.3,135.27,0.155336]
[1767597204967,0.68847137,135.3,135.28,7.39207569]
[1767597210082,18.67086928,135.35,135.3,0.155336]
[1767597210083,0.68847137,135.34,135.3,0.155336]
[1767597210256,0.68847137,135.34,135.31,13.48]
[1767597210666,0.66033324,135.33,135.31,13.48]
[1767597212356,0.66033324,135.33,135.31,20.8704237]
[1767597213077,0.66033324,135.34,135.31,20.8704237]
[1767597214082,0.66033324,135.34,135.31,20.99723048]
[1767597214380,0.66033324,135.34,135.31,24.33402248]
[1767597216188,0.86033324,135.35,135.32,0.12680678]
[1767597216393,0.2,135.35,135.33,3.336792]
[1767597216689,0.2,135.35,135.32,0.86579584]
[1767597216996,0.2,135.35,135.33,3.336792]
[1767597217297,0.2,135.35,135.32,4.20258784]
[1767597220485,0.2,135.35,135.33,10.72613656]
[1767597222004,0.2,135.35,135.33,7.38934456]
[1767597222206,0.86033324,135.35,135.33,7.38934456]
[1767597222381,0.66033324,135.34,135.32,0.73898906]
[1767597222580,0.66033324,135.34,135.31,13.48]
[1767597223714,0.66033324,135.32,135.3,0.7390983]
[1767597223893,0.66033324,135.32,135.29,13.48]
[1767597225185,0.66033324,135.31,135.29,13.48]
[1767597226394,0.66033324,135.31,135.27,8.25851853]
[1767597226395,0.66033324,135.31,135.27,21.73851853]
[1767597226603,0.66033324,135.31,135.27,25.07531053]
[1767597228196,0.66033324,135.31,135.27,21.73851853]
[1767597228906,0.66033324,135.31,135.27,8.25851853]
[1767597229203,0.66033324,135.31,135.27,21.73851853]
[1767597229402,0.66033324,135.31,135.27,8.25851853]
[1767597229608,0.66033324,135.31,135.27,21.73851853]
[1767597231715,0.66033324,135.31,135.27,25.07531053]
[1767597232097,0.66033324,135.31,135.27,24.33604832]
[1767597232314,0.66033324,135.31,135.27,7.51925632]
[1767597232611,0.66033324,135.31,135.27,24.33604832]
[1767597232991,0.66376199,135.3,135.27,20.87244954]
[1767597234309,0.66376199,135.3,135.27,13.48]
[1767597234609,0.66376199,135.28,135.25,13.60680678]
[1767597234808,0.60376201,135.28,135.25,13.60680678]
[1767597235519,0.60376201,135.28,135.25,20.87355371]
[1767597236903,0.66376199,135.26,135.23,62.58680676]
[1767597237102,0.60376201,135.26,135.23,21.06124998]
[1767597239724,0.60376201,135.26,135.23,24.39804198]
[1767597241310,0.57376202,135.26,135.23,24.39804198]
[1767597242227,0.57376202,135.26,135.23,21.06124998]
[1767597246734,0.57376202,135.26,135.22,7.39512681]
[1767597246935,0.71385913,135.23,135.21,13.48]
[1767597247139,0.68385914,135.23,135.21,20.87557803]
[1767597247740,0.65385915,135.23,135.21,20.87557803]
[1767597251851,0.65385915,135.23,135.21,13.48]
[1767597252033,0.65385915,135.23,135.2,7.39625212]
[1767597252243,0.65385915,135.23,135.19,21.21372145]
[1767597252441,0.71385913,135.21,135.18,7.39721986]
[1767597252638,0.68385914,135.21,135.18,7.39721986]
[1767597253440,0.68385914,135.21,135.19,7.39688099]
[1767597253960,0.68385914,135.21,135.18,7.39754401]
[1767597257433,0.71385913,135.2,135.17,21.21469444]
[1767597257639,0.71385913,135.2,135.17,20.87788773]
[1767597257951,0.71385913,135.19,135.17,20.87788773]
[1767597261144,0.71385913,135.18,135.16,0.2]
[1767597261455,0.68385914,135.18,135.16,0.2]
[1767597261642,0.65385915,135.18,135.16,0.2]
[1767597261844,105.93651643,135.24,135.16,8.02517706]
[1767597262043,2.13651643,135.21,135.16,8.02517706]
[1767597263562,0.71385913,135.2,135.16,8.02517706]
[1767597266972,2.85037556,135.2,135.16,8.02517706]
[1767597267172,0.71385913,135.19,135.16,8.02517706]
[1767597273980,0.71385913,135.19,135.16,7.59837038]
[1767597275884,2.85037556,135.19,135.16,7.59837038]
[1767597276105,0.72385652,135.18,135.16,7.59837038]
[1767597276800,0.72385652,135.16,135.14,0.2]
[1767597276985,2.86037295,135.16,135.14,0.2]
[1767597277382,0.72385652,135.16,135.14,0.2]
[1767597277809,0.72385652,135.16,135.15,7.39918608]
[1767597280395,2.86037295,135.16,135.15,7.39918608]
[1767597280895,2.86037295,135.16,135.14,7.5996457]
[1767597281207,0.72385652,135.15,135.14,7.5996457]
[1767597281595,2.86037295,135.15,135.14,0.2]
[1767597281902,2.86037295,135.15,135.12,14.20331959]
[1767597282113,2.83037296,135.15,135.12,14.20331959]
[1767597282507,2.83037296,135.15,135.13,7.40028121]
[1767597283419,2.77037297,135.15,135.13,7.40028121]
[1767597285592,0.72385652,135.15,135.13,7.40028121]
[1767597289118,2.13651643,135.19,135.15,0.72331959]
[1767597289299,7.39624576,135.21,135.15,0.72331959]
[1767597289596,2.13651643,135.19,135.15,0.72331959]
[1767597290835,2.13651643,135.19,135.15,8.1221133]
[1767597291135,0.72385652,135.18,135.15,21.6021133]
[1767597293245,2.86037295,135.18,135.15,21.6021133]
[1767597297546,0.72385652,135.18,135.15,21.6021133]
[1767597297848,2.86037295,135.18,135.15,21.6021133]
[1767597300251,0.72385652,135.18,135.15,21.6021133]
[1767597300548,2.86037295,135.18,135.15,21.6021133]
[1767597301336,0.67807473,135.17,135.15,20.87879371]
[1767597301544,2.81459116,135.17,135.15,7.39879371]
[1767597301840,7.3964801,135.2,135.12,0.74008288]
[1767597301841,0.67807473,135.15,135.12,19.158962]
[1767597302135,2.81459116,135.14,135.13,7.40005166]
[1767597302335,2.78459117,135.14,135.11,14.13735531]
[1767597302642,2.13651643,135.13,135.11,21.53840267]
[1767597303343,2.78459117,135.14,135.11,21.53840267]
[1767597303846,0.64807474,135.14,135.12,7.40081734]
[1767597304345,0.67807473,135.16,135.13,0.65735531]
[1767597304542,2.81459116,135.16,135.13,0.65735531]
[1767597304840,0.67807473,135.15,135.12,8.05817265]
[1767597305044,0.64807474,135.15,135.12,8.05817265]
[1767597307520,2.81459116,135.14,135.12,7.40081734]
[1767597307720,2.75459117,135.14,135.12,7.40081734]
[1767597308151,2.13651643,135.13,135.11,21.53858226]
[1767597308335,2.13651643,135.13,135.11,7.40122695]
[1767597308559,2.13651643,135.13,135.1,21.08184287]
[1767597308759,2.13651643,135.12,135.1,21.08184287]
[1767597308947,2.13651643,135.12,135.1,7.60184287]
[1767597309351,7.399295,135.15,135.1,7.60184287]
[1767597309554,2.13651643,135.12,135.1,7.60184287]
[1767597309956,2.81459116,135.14,135.11,0.65735531]
[1767597310966,2.81459116,135.14,135.1,8.25919818]
[1767597311172,0.64474947,135.13,135.1,8.25919818]
[1767597312766,3.98875143,135.13,135.1,8.25919818]
[1767597313979,0.64474947,135.13,135.1,8.25919818]
[1767597314280,3.98875143,135.13,135.1,8.25919818]
[1767597314755,0.64474947,135.13,135.1,8.25919818]
[1767597316881,3.98875143,135.13,135.1,8.25919818]
[1767597317179,3.34400196,135.15,135.11,0.65735531]
[1767597317494,3.34400196,135.16,135.12,0.65735531]
[1767597318669,3.34400196,135.16,135.13,7.40028121]
[1767597319075,3.92858932,135.16,135.13,7.40028121]
[1767597319371,3.92858932,135.16,135.13,8.05763652]
[1767597319559,0.58458736,135.19,135.16,0.65735531]
[1767597319752,0.58458736,135.19,135.15,4.00135727]
[1767597320568,0.58458736,135.19,135.15,8.05610629]
[1767597322455,0.58458736,135.19,135.16,0.65735531]
[1767597328662,0.58458736,135.22,135.18,0.65735531]
[1767597328862,0.58458736,135.22,135.19,0.65735531]
[1767597329186,0.58458736,135.23,135.19,0.65735531]
[1767597329383,0.099,135.22,135.19,0.65735531]
[1767597332492,0.57973148,135.21,135.18,8.1055398]
[1767597332787,0.57973148,135.21,135.18,7.39705249]
[1767597333186,3.44780928,135.2,135.17,0.70848731]
[1767597334585,0.10380732,135.2,135.17,0.70848731]
[1767597334789,3.44780928,135.2,135.17,0.70848731]
[1767597335293,0.10380732,135.2,135.17,0.70848731]
[1767597335588,3.44780928,135.2,135.17,0.70848731]
[1767597335888,3.44780928,135.2,135.17,8.10654129]
[1767597336591,0.10380732,135.2,135.17,8.10654129]
[1767597336789,3.44780928,135.2,135.17,8.10654129]
[1767597337174,0.10380732,135.2,135.17,8.10654129]
[1767597337378,3.44780928,135.2,135.17,8.10654129]
[1767597340585,0.10380732,135.2,135.17,8.10654129]
[1767597340780,3.44780928,135.2,135.17,8.10654129]
[1767597341506,0.10380732,135.2,135.17,8.10654129]
[1767597343592,0.10380732,135.2,135.17,7.39805398]
[1767597345482,0.10380732,135.2,135.17,8.10654129]
[1767597346105,0.10380732,135.2,135.17,11.45054325]
[1767597346287,0.58458736,135.21,135.17,11.45054325]
[1767597347099,0.58458736,135.21,135.18,0.70848731]
[1767597348890,0.58458736,135.21,135.18,4.05248927]
[1767597350397,0.58458736,135.22,135.19,0.70848731]
[1767597350600,0.58458736,135.22,135.18,11.44998455]
[1767597351099,0.58458736,135.24,135.21,0.70848731]
[1767597351598,0.58458736,135.24,135.2,0.70848731]
[1767597353103,3.92858932,135.24,135.2,0.70848731]
[1767597353793,0.099,135.23,135.2,0.70848731]
[1767597355010,3.34400196,135.24,135.2,0.70848731]
[1767597355011,3.92858932,135.24,135.2,0.70848731]
[1767597356395,0.58458736,135.26,135.22,0.70848731]